bitfinex/quotes_SOLUSD_20251202
["timestamp","ask_amount","ask_price","bid_price","bid_amount"]
[1764698941367,12.38120323,139.67,139.65,0.66]
[1764698941671,12.38120323,139.66,139.64,16.968864]
[1764698942175,12.38120323,139.66,139.65,0.66]
[1764698942469,4.84996621,139.67,139.65,0.66]
[1764698943578,4.84996621,139.67,139.65,7.82037895]
[1764698944376,4.84996621,139.67,139.65,7.16037895]
[1764698944583,7.94,139.68,139.66,0.66]
[1764698945189,4.84996621,139.72,139.66,5.50996621]
[1764698945358,4.84996621,139.72,139.67,13.65991113]
[1764698945557,12.78996621,139.73,139.68,7.15922107]
[1764698945894,4.84996621,139.71,139.68,25.71727376]
[1764698946047,4.84996621,139.71,139.69,0.66]
[1764698946551,4.84996621,139.72,139.69,0.66]
[1764698947663,4.84996621,139.7,139.66,0.66]
[1764698947864,4.84996621,139.68,139.66,0.66]
[1764698948267,4.84996621,139.69,139.66,0.66]
[1764698949172,12.78996621,139.7,139.66,7.81991554]
[1764698949578,12.78996621,139.7,139.67,0.66]
[1764698949761,7.94,139.7,139.67,0.66]
[1764698949962,12.78996621,139.7,139.67,0.66]
[1764698950181,4.84996621,139.69,139.65,24.12948362]
[1764698950381,4.84996621,139.69,139.66,0.66]
[1764698951084,12.00883777,139.69,139.66,0.66]
[1764698951266,4.84996621,139.69,139.66,7.82015742]
[1764698951467,4.84996621,139.69,139.67,0.66]
[1764698951664,19.94834354,139.7,139.67,0.66]
[1764698953804,4.84996621,139.69,139.66,7.16015742]
[1764698953964,19.94834354,139.7,139.67,0.7]
[1764698954796,4.84996621,139.68,139.65,24.16947597]
[1764698954977,4.84996621,139.68,139.66,0.7]
[1764698955292,4.84996621,139.68,139.66,17.008864]
[1764698956796,4.84996621,139.68,139.66,16.308864]
[1764698956997,4.84996621,139.68,139.63,22.75393709]
[1764698956998,12.00925605,139.68,139.64,7.86107659]
[1764698957170,12.00925605,139.68,139.64,0.7]
[1764698957171,4.84996621,139.67,139.64,0.7]
[1764698957785,4.84996621,139.65,139.62,0.7]
[1764698957958,4.84996621,139.65,139.63,0.7]
[1764698958162,4.84996621,139.65,139.6,29.02215399]
[1764698958358,4.84996621,139.65,139.61,0.7]
[1764698958663,4.84996621,139.63,139.61,0.7]
[1764698959265,4.84996621,139.63,139.61,17.008864]
[1764698959480,12.78996621,139.64,139.62,0.7]
[1764698959807,7.94,139.64,139.62,0.7]
[1764698960878,7.94,139.64,139.62,7.86208074]
[1764698961305,7.94,139.66,139.63,0.7]
[1764698961510,4.84996621,139.69,139.64,4.84996621]
[1764698961801,12.78996621,139.69,139.65,21.15883021]
[1764698962005,7.94,139.69,139.65,21.15883021]
[1764698962204,7.94,139.69,139.66,0.7]
[1764698962803,15.09874815,139.69,139.66,0.7]
[1764698963700,7.94,139.69,139.66,7.85997192]
[1764698964405,7.94,139.69,139.67,0.7]
[1764698965177,7.94,139.69,139.67,7.85964599]
[1764698965381,3.10289699,139.7,139.67,7.85964599]
[1764698965804,3.10289699,139.7,139.67,7.15964599]
[1764698966021,3.10289699,139.7,139.68,0.7]
[1764698967111,15.09772045,139.71,139.68,0.7]
[1764698967294,3.10289699,139.7,139.68,0.7]
[1764698968315,10.26111429,139.7,139.68,0.7]
[1764698970106,10.26111429,139.7,139.67,0.7]
[1764698974806,3.10289699,139.7,139.67,7.85970118]
[1764698975009,104.5,139.73,139.68,3.10289699]
[1764698975216,7.94,139.73,139.69,3.10289699]
[1764698975413,11.04289699,139.73,139.69,3.10289699]
[1764698975724,11.04289699,139.73,139.7,0.71]
[1764698977143,7.94,139.73,139.7,0.71]
[1764698977500,11.04289699,139.73,139.7,0.71]
[1764698977707,18.19956966,139.73,139.7,0.71]
[1764698977925,18.19956966,139.73,139.7,7.86817884]
[1764698979210,18.19956966,139.73,139.7,0.71]
[1764698979835,3.10289699,139.72,139.7,0.71]
[1764698980129,3.10289699,139.71,139.7,0.71]
[1764698980299,3.10289699,139.72,139.7,0.71]
[1764698981523,3.10289699,139.72,139.7,7.86819032]
[1764698981729,11.04289699,139.73,139.7,7.86819032]
[1764698982231,3.10289699,139.72,139.7,7.86819032]
[1764698983630,11.04289699,139.73,139.7,7.86819032]
[1764698984436,11.04289699,139.73,139.7,7.84819032]
[1764698984729,3.93759766,139.79,139.72,3.10289699]
[1764698984911,0.2,139.79,139.75,3.10289699]
[1764698985120,3.30289699,139.79,139.75,3.10289699]
[1764698985310,3.30289699,139.79,139.75,0.69]
[1764698985929,10.65668009,139.79,139.75,7.84562761]
[1764698986403,0.2,139.79,139.76,3.10289699]
[1764698986607,0.2,139.79,139.76,3.79289699]
[1764698986804,0.2,139.79,139.77,0.69]
[1764698988528,3.30289699,139.79,139.76,16.998864]
[1764698988728,3.30289699,139.79,139.76,16.308864]
[1764698988933,3.30289699,139.79,139.77,0.69]
[1764698990438,0.2,139.79,139.77,7.84455232]
[1764698990813,0.2,139.79,139.78,0.69]
[1764698991817,3.50289699,139.79,139.76,16.308864]
[1764698992137,3.10289699,139.78,139.76,16.998864]
[1764698992309,0.2,139.79,139.77,0.69]
[1764698992513,3.30289699,139.79,139.76,24.15395726]
[1764698993038,3.10289699,139.78,139.76,24.15395726]
[1764698993737,0.2,139.79,139.76,24.15395726]
[1764698993940,3.30289699,139.79,139.76,24.15395726]
[1764698994315,3.10289699,139.78,139.76,24.15395726]
[1764698995345,3.30289699,139.79,139.76,24.15395726]
[1764698995527,3.10289699,139.78,139.76,24.15395726]
[1764698995726,3.30289699,139.79,139.77,0.69]
[1764698996026,3.30289699,139.79,139.76,24.15395726]
[1764698997243,7.55367066,139.79,139.76,16.308864]
[1764698997435,3.10289699,139.78,139.76,16.998864]
[1764698997736,7.35367066,139.79,139.77,0.69]
[1764698997942,3.10289699,139.78,139.75,16.308864]
[1764698998247,0.72,139.84,139.77,8.80994492]
[1764698998540,3.10289699,139.83,139.78,3.10289699]
[1764698998721,3.10289699,139.79,139.76,16.308864]
[1764698998912,3.10289699,139.77,139.76,16.308864]
[1764699000046,3.10289699,139.77,139.76,23.46398706]
[1764699000253,3.82289699,139.77,139.72,0.69]
[1764699000547,3.10289699,139.76,139.73,0.69]
[1764699000717,0.72,139.77,139.73,0.69]
[1764699000920,0.72,139.76,139.72,0.69]
[1764699001234,7.94,139.79,139.75,7.15563506]
[1764699001422,3.10289699,139.76,139.74,16.308864]
[1764699001824,3.10289699,139.76,139.74,23.4649672]
[1764699002024,3.10289699,139.76,139.74,24.1549672]
[1764699002230,7.94,139.79,139.74,16.308864]
[1764699002434,3.82289699,139.75,139.72,7.84698191]
[1764699002822,3.10289699,139.74,139.72,7.84698191]
[1764699003231,3.10289699,139.73,139.71,7.15760444]
[1764699003436,3.82289699,139.74,139.71,7.84760444]
[1764699004650,3.82289699,139.73,139.7,23.46688233]
[1764699004948,0.72,139.73,139.7,16.308864]
[1764699005153,0.72,139.72,139.7,16.308864]
[1764699005459,3.82289699,139.73,139.7,16.308864]
[1764699005682,3.82289699,139.73,139.66,3.79289699]
[1764699005683,3.10289699,139.71,139.66,3.79289699]
[1764699005867,3.10289699,139.71,139.67,0.69]
[1764699006163,3.82289699,139.72,139.68,16.308864]
[1764699006342,3.10289699,139.71,139.68,16.308864]
[1764699006661,3.82289699,139.71,139.68,0.69]
[1764699007934,3.82289699,139.71,139.67,7.15938913]
[1764699007935,7.8777455,139.71,139.66,23.46891392]
[1764699008134,17.89120588,139.74,139.68,16.998864]
[1764699008135,7.15714088,139.73,139.68,16.998864]
[1764699008343,0.72,139.71,139.68,16.998864]
[1764699009064,3.82289699,139.71,139.68,16.998864]
[1764699009267,3.82289699,139.71,139.68,16.308864]
[1764699009268,3.10289699,139.71,139.68,16.308864]
[1764699009859,3.82289699,139.71,139.68,16.998864]
[1764699010260,10.98073191,139.71,139.68,16.998864]
[1764699010471,10.98073191,139.71,139.64,0.69]
[1764699010472,3.10289699,139.69,139.64,0.69]
[1764699010755,0.72,139.7,139.63,7.85176869]
[1764699010756,3.10289699,139.65,139.63,7.85176869]
[1764699011143,3.10289699,139.66,139.64,0.69]
[1764699011550,3.10289699,139.66,139.64,7.85098519]
[1764699013258,3.10289699,139.66,139.63,7.16158297]
[1764699013465,3.10289699,139.65,139.63,0.7]
[1764699013970,3.10289699,139.65,139.63,7.86172982]
[1764699014175,3.78289699,139.66,139.63,7.86172982]
[1764699014388,11.04289699,139.68,139.64,0.7]
[1764699014693,11.04289699,139.71,139.67,16.308864]
[1764699015178,11.04289699,139.71,139.68,0.7]
[1764699015385,3.10289699,139.7,139.65,3.10289699]
[1764699015583,3.10289699,139.69,139.67,0.7]
[1764699015944,3.10289699,139.7,139.67,7.85953225]
[1764699016386,3.10289699,139.7,139.68,0.7]
[1764699016876,3.78289699,139.7,139.67,7.15953225]
[1764699017077,3.10289699,139.7,139.67,7.85953225]
[1764699017666,18.88078845,139.71,139.67,7.85953225]
[1764699018295,3.10289699,139.7,139.67,0.7]
[1764699018469,18.88078845,139.71,139.67,7.85973136]
[1764699019354,11.72289699,139.71,139.67,7.85973136]
[1764699019556,18.8807124,139.71,139.67,7.85973136]
[1764699020682,18.8807124,139.71,139.68,0.7]
[1764699021656,11.72289699,139.71,139.68,0.7]
[1764699021975,18.88074852,139.71,139.68,0.7]
[1764699022477,15.77785153,139.71,139.68,7.85920573]
[1764699022899,7.94,139.71,139.68,7.15920573]
[1764699023059,7.94,139.71,139.69,0.7]
[1764699025598,0.68,139.73,139.69,12.70599451]
[1764699026092,0.68,139.73,139.7,0.7]
[1764699026402,12.6839631,139.73,139.69,7.85870719]
[1764699027088,12.6839631,139.73,139.7,0.7]
[1764699027285,12.6839631,139.73,139.69,7.85870719]
[1764699027496,12.6839631,139.73,139.7,0.7]
[1764699027905,0.68,139.72,139.69,7.85870719]
[1764699028287,12.6839631,139.73,139.7,0.7]
[1764699028492,4.84728732,139.73,139.7,0.7]
[1764699029084,5.52728732,139.73,139.7,0.7]
[1764699029808,12.68396157,139.73,139.7,0.7]
[1764699029992,5.52728732,139.72,139.69,16.308864]
[1764699030198,4.84728732,139.7,139.67,7.85973365]
[1764699030598,5.52728732,139.7,139.67,7.85973365]
[1764699031193,7.94,139.71,139.68,0.7]
[1764699031679,7.94,139.71,139.68,5.54728732]
[1764699031877,7.94,139.71,139.68,12.70619763]
[1764699032194,8.62,139.71,139.68,17.008864]
[1764699032502,8.62,139.71,139.68,24.16798698]
[1764699033402,8.62,139.71,139.68,29.0152743]
[1764699033701,7.94,139.71,139.69,0.71]
[1764699034100,7.94,139.71,139.69,7.86842918]
[1764699034485,20.60382753,139.74,139.7,0.71]
[1764699034884,0.66,139.73,139.7,0.71]
[1764699035404,0.66,139.73,139.7,7.86782136]
[1764699036405,12.78728732,139.74,139.7,12.00510868]
[1764699036586,7.94,139.74,139.71,0.71]
[1764699037506,13.44728732,139.74,139.71,0.71]
[1764699038103,12.78728732,139.74,139.71,0.71]
[1764699038401,13.44728732,139.76,139.71,12.71446231]
[1764699038612,13.44728732,139.76,139.71,30.60867174]
[1764699038906,0.66,139.75,139.72,0.71]
[1764699040111,5.50728732,139.75,139.71,25.05138442]
[1764699040291,7.81565312,139.75,139.71,7.15717499]
[1764699040494,7.81565312,139.75,139.71,7.86717499]
[1764699040495,0.66,139.74,139.71,7.86717499]
[1764699042113,4.84728732,139.73,139.7,23.46693292]
[1764699042411,4.84728732,139.72,139.69,7.15849725]
[1764699042585,5.54728732,139.72,139.69,7.85849725]
[1764699043591,0.7,139.72,139.69,7.85849725]
[1764699044910,19.94397548,139.73,139.69,7.15849725]
[1764699045208,8.64,139.73,139.7,0.7]
[1764699046214,8.64,139.73,139.7,7.85797534]
[1764699046714,19.94406507,139.73,139.69,7.15846832]
[1764699047015,0.7,139.72,139.69,7.15846832]
[1764699047316,5.54728732,139.72,139.68,7.15902828]
[1764699047493,5.54728732,139.72,139.68,7.85902828]
[1764699047825,5.54728732,139.71,139.67,24.1683567]
[1764699048298,12.70505878,139.71,139.67,24.1683567]
[1764699048508,0.7,139.7,139.67,24.1683567]
[1764699050625,20.6256715,139.7,139.67,16.308864]
[1764699051233,5.54728732,139.69,139.67,16.308864]
[1764699051928,0.7,139.69,139.67,16.308864]
[1764699052120,0.7,139.69,139.67,23.4684903]
[1764699053916,8.62,139.7,139.67,24.1684903]
[1764699055742,15.77826253,139.7,139.67,24.1684903]
[1764699055913,15.77826253,139.7,139.67,17.008864]
[1764699056119,0.7,139.69,139.67,16.308864]
[1764699056327,0.7,139.69,139.67,17.008864]
[1764699056938,8.62,139.7,139.67,24.16858061]
[1764699057344,4.84728732,139.68,139.63,0.7]
[1764699057542,0.7,139.69,139.63,0.7]
[1764699057543,4.84728732,139.67,139.63,0.7]
[1764699057856,12.76728732,139.67,139.63,7.86136906]
[1764699058016,0.7,139.66,139.63,7.86136906]
[1764699058213,0.7,139.66,139.63,7.16136906]
[1764699058440,0.7,139.66,139.64,0.7]
[1764699058628,20.62723693,139.67,139.64,0.7]
[1764699059019,20.62723693,139.67,139.64,7.86122322]
[1764699059219,7.92,139.67,139.64,7.86122322]
[1764699059432,7.92,139.67,139.65,0.7]
[1764699059642,8.62,139.67,139.64,7.86122322]
[1764699059941,19.92723416,139.67,139.64,0.7]
[1764699060148,15.77994684,139.67,139.64,0.7]
[1764699060356,4.84728732,139.65,139.62,0.1]
[1764699060654,4.84728732,139.65,139.62,7.96225751]
[1764699060823,5.54728732,139.65,139.62,7.96225751]
[1764699061025,5.54728732,139.65,139.62,0.8]
[1764699061228,12.70815798,139.65,139.62,0.8]
[1764699061437,5.54728732,139.65,139.62,0.8]
[1764699061828,0.7,139.65,139.62,0.8]
[1764699062025,7.92,139.67,139.64,4.84728732]
[1764699062235,7.94,139.69,139.65,4.84728732]
[1764699062426,13.48728732,139.69,139.66,0.7]
[1764699062743,0.7,139.68,139.65,7.86054657]
[1764699063045,7.94,139.69,139.65,7.86054657]
[1764699063235,7.94,139.69,139.66,0.7]
[1764699063439,0.7,139.68,139.65,7.86054657]
[1764699063926,0.7,139.68,139.65,12.70783389]
[1764699064348,12.78728732,139.69,139.66,0.7]
[1764699064653,8.64,139.69,139.66,0.7]
[1764699065243,7.94,139.69,139.66,7.8602418]
[1764699065445,7.94,139.69,139.66,12.70752912]
[1764699065754,7.94,139.69,139.67,0.7]
[1764699065927,8.64,139.69,139.66,0.7]
[1764699066132,13.48728732,139.69,139.66,0.7]
[1764699066450,8.64,139.69,139.66,0.7]
[1764699066863,0.7,139.68,139.65,7.86063398]
[1764699067031,20.64609629,139.69,139.66,0.7]
[1764699067665,8.64,139.69,139.66,0.7]
[1764699069949,8.64,139.69,139.66,7.86022423]
[1764699070159,7.94,139.69,139.67,0.7]
[1764699070365,104.5,139.72,139.67,0.7]
[1764699070662,4.84728732,139.82,139.71,21.15615132]
[1764699070859,0.7,139.77,139.76,8.80994492]
[1764699071242,0.7,139.77,139.7,0.7]
[1764699071446,4.84728732,139.76,139.71,5.54728732]
[1764699071645,4.84728732,139.75,139.71,0.7]
[1764699071862,4.84728732,139.73,139.7,16.308864]
[1764699072063,4.84728732,139.73,139.7,24.17703361]
[1764699072370,5.45728732,139.74,139.7,17.018864]
[1764699072664,4.84728732,139.73,139.7,16.308864]
[1764699073049,4.84728732,139.71,139.67,16.308864]
[1764699073357,5.45728732,139.72,139.68,9.51994492]
[1764699073674,5.45728732,139.72,139.68,8.80994492]
[1764699073877,5.45728732,139.72,139.68,9.51994492]
[1764699074051,4.84728732,139.7,139.65,12.71782316]
[1764699074359,4.84728732,139.7,139.66,25.11880892]
[1764699074560,4.84728732,139.68,139.64,8.80994492]
[1764699074970,4.84728732,139.68,139.64,25.11880892]
[1764699075156,4.84728732,139.66,139.62,7.97191457]
[1764699075358,4.84728732,139.66,139.62,0.81]
[1764699075549,8.06,139.69,139.64,8.80994492]
[1764699075751,8.06,139.69,139.65,4.84728732]
[1764699075959,8.06,139.69,139.65,5.55728732]
[1764699076155,8.06,139.69,139.66,0.71]
[1764699076673,0.61,139.68,139.63,8.80994492]
[1764699076973,4.84728732,139.67,139.63,25.11880892]
[1764699077275,0.61,139.68,139.63,25.82880892]
[1764699077276,4.84728732,139.66,139.63,25.82880892]
[1764699077443,4.84728732,139.64,139.62,0.1]
[1764699077646,5.45728732,139.64,139.62,0.1]
[1764699077842,7.16159289,139.64,139.62,0.1]
[1764699078056,4.84728732,139.64,139.62,0.1]
[1764699080688,8.04,139.65,139.63,0.71]
[1764699080987,12.88728732,139.68,139.64,13.65723224]
[1764699081390,12.88728732,139.68,139.65,0.71]
[1764699081595,8.04,139.68,139.66,8.80994492]
[1764699081753,13.49728732,139.7,139.66,8.80994492]
[1764699082068,13.49728732,139.7,139.67,14.36723224]
[1764699082069,8.04,139.7,139.67,14.36723224]
[1764699082369,8.04,139.7,139.66,16.308864]
[1764699082370,3.10373704,139.68,139.66,16.308864]
[1764699082783,3.71373704,139.68,139.66,16.308864]
[1764699082950,3.10373704,139.68,139.66,16.308864]
[1764699083151,15.80825196,139.7,139.67,8.80994492]
[1764699083358,3.10373704,139.69,139.67,8.80994492]
[1764699083559,8.65,139.7,139.67,8.80994492]
[1764699083762,3.10373704,139.69,139.67,8.80994492]
[1764699084167,8.04,139.7,139.68,0.71]
[1764699084671,8.04,139.7,139.69,8.80994492]
[1764699085250,0.61,139.76,139.69,28.93254596]
[1764699085458,3.71373704,139.76,139.72,8.80994492]
[1764699085646,3.10373704,139.73,139.7,8.80994492]
[1764699085857,3.10373704,139.72,139.7,8.80994492]
[1764699086258,3.10373704,139.73,139.7,8.80994492]
[1764699086560,7.76642304,139.74,139.7,8.80994492]
[1764699086761,7.15580328,139.75,139.71,0.71]
[1764699086962,3.10373704,139.74,139.72,8.80994492]
[1764699087159,3.10373704,139.76,139.72,8.80994492]
[1764699087465,3.10373704,139.76,139.74,8.80994492]
[1764699087971,11.14373704,139.77,139.75,0.71]
[1764699088171,11.14373704,139.77,139.73,25.82880892]
[1764699088172,3.10373704,139.76,139.73,25.82880892]
[1764699088382,3.10373704,139.74,139.71,25.82880892]
[1764699088586,3.10373704,139.73,139.71,25.11880892]
[1764699088997,0.61,139.75,139.71,25.11880892]
[1764699089156,3.10373704,139.74,139.71,25.82880892]
[1764699089356,3.10373704,139.73,139.71,25.82880892]
[1764699089557,3.10373704,139.74,139.71,25.82880892]
[1764699091082,3.10373704,139.72,139.71,8.80994492]
[1764699091253,3.10373704,139.73,139.71,8.80994492]
[1764699091453,7.7651906,139.76,139.7,15.9677468]
[1764699091654,3.10373704,139.75,139.71,0.71]
[1764699091884,3.71373704,139.75,139.71,0.71]
[1764699092258,3.10373704,139.75,139.71,0.71]
[1764699092787,10.25892764,139.76,139.73,8.80994492]
[1764699093075,11.14373704,139.8,139.76,8.80994492]
[1764699093503,8.04,139.8,139.78,8.80994492]
[1764699094480,8.04,139.8,139.79,9.48994492]
[1764699094699,8.04,139.8,139.79,8.80994492]
[1764699095105,8.04,139.8,139.79,9.48994492]
[1764699095418,10.25592232,139.82,139.79,8.80994492]
[1764699095577,3.10373704,139.8,139.78,8.80994492]
[1764699096298,0.61,139.81,139.77,16.988864]
[1764699096605,0.61,139.81,139.77,16.308864]
[1764699097407,3.10373704,139.78,139.73,0.68]
[1764699097705,3.10373704,139.76,139.74,8.80994492]
[1764699098181,3.10373704,139.77,139.74,8.80994492]
[1764699098601,8.04,139.78,139.74,8.80994492]
[1764699098808,3.10373704,139.77,139.74,8.80994492]
[1764699099308,10.25855002,139.77,139.74,8.80994492]
[1764699099500,3.10373704,139.77,139.74,9.48994492]
[1764699100181,3.10373704,139.76,139.74,9.48994492]
[1764699100511,7.26581882,139.76,139.74,8.80994492]
[1764699100976,7.26581882,139.75,139.72,24.14586419]
[1764699101182,7.26581882,139.75,139.73,9.48994492]
[1764699101618,7.26581882,139.76,139.73,8.80994492]
[1764699101896,7.15482025,139.77,139.7,8.80994492]
[1764699101897,7.87581882,139.74,139.7,8.80994492]
[1764699102107,7.26581882,139.71,139.69,8.80994492]
[1764699102685,7.26581882,139.7,139.68,9.51994492]
[1764699102884,7.26581882,139.7,139.68,0.71]
[1764699103081,7.26581882,139.71,139.69,0.71]
[1764699103298,7.26581882,139.72,139.69,7.86857919]
[1764699104696,15.7860502,139.75,139.69,7.86857919]
[1764699105017,7.26581882,139.7,139.66,8.80994492]
[1764699105185,7.26581882,139.67,139.66,8.80994492]
[1764699105713,7.87581882,139.67,139.62,0.1]
[1764699105909,7.26581882,139.64,139.62,0.1]
[1764699106110,7.26581882,139.64,139.63,8.80994492]
[1764699106427,7.26581882,139.64,139.62,0.1]
[1764699106591,7.26581882,139.63,139.62,8.90994492]
[1764699107479,7.26581882,139.64,139.62,16.78224258]
[1764699108414,7.26581882,139.63,139.62,0.1]
[1764699108587,7.87581882,139.63,139.62,0.1]
[1764699109112,8.02,139.66,139.62,0.1]
[1764699109293,0.61,139.73,139.66,8.80994492]
[1764699109503,0.61,139.72,139.68,8.80994492]
[1764699109720,7.26581882,139.72,139.71,25.11880892]
[1764699109895,0.61,139.71,139.68,8.80994492]
[1764699110223,7.26581882,139.69,139.65,8.80994492]
[1764699110403,8.14,139.68,139.61,0.71]
[1764699110601,7.26581882,139.63,139.59,0.81]
[1764699111291,7.87581882,139.63,139.59,0.1]
[1764699111486,15.03760353,139.63,139.59,0.1]
[1764699111921,8.14,139.64,139.61,8.80994492]
[1764699112115,7.26581882,139.63,139.62,9.61994492]
[1764699112288,15.40581882,139.64,139.62,9.61994492]
[1764699112611,7.26581882,139.63,139.62,8.90994492]
[1764699112818,7.26581882,139.63,139.62,0.1]
[1764699114011,15.30119659,139.65,139.62,0.1]
[1764699114220,7.26581882,139.63,139.62,0.1]
[1764699114587,7.87581882,139.63,139.62,0.1]
[1764699115221,7.26581882,139.63,139.62,0.1]
[1764699115791,8.75,139.65,139.62,0.1]
[1764699116018,15.91084843,139.65,139.62,0.1]
[1764699116323,7.26581882,139.63,139.62,0.1]
[1764699116528,14.53163764,139.6,139.59,0.1]
[1764699116691,15.40581882,139.6,139.59,0.1]
[1764699116887,15.91581882,139.6,139.59,0.1]
[1764699117693,15.40581882,139.6,139.59,0.1]
[1764699118019,8.14,139.6,139.59,9.61994492]
[1764699118594,15.40581882,139.6,139.59,9.61994492]
[1764699119336,8.14,139.6,139.59,9.61994492]
[1764699119542,8.14,139.6,139.59,8.90994492]
[1764699119837,15.30332378,139.6,139.59,8.90994492]
[1764699120010,22.5691426,139.6,139.59,8.90994492]
[1764699120336,22.5691426,139.6,139.59,0.1]
[1764699120497,15.30332378,139.6,139.59,0.1]
[1764699120693,23.0791426,139.6,139.59,0.1]
[1764699121097,30.34496142,139.6,139.58,0.1]
[1764699121438,7.26581882,139.59,139.58,0.1]
[1764699121998,14.42965577,139.59,139.58,0.1]
[1764699122213,15.30333874,139.6,139.58,0.81]
[1764699122429,15.40581882,139.6,139.58,0.81]
[1764699122600,8.14,139.6,139.58,0.81]
[1764699122800,8.14,139.6,139.59,8.80994492]
[1764699123247,8.14,139.6,139.58,0.1]
[1764699123525,15.40581882,139.6,139.58,0.81]
[1764699123711,8.14,139.6,139.59,8.80994492]
[1764699124126,8.14,139.6,139.59,9.51994492]
[1764699124812,8.14,139.6,139.59,16.68378187]
[1764699124999,14.42712912,139.64,139.59,23.94960069]
[1764699125322,8.14,139.63,139.61,8.80994492]
[1764699125837,8.14,139.63,139.61,9.51994492]
[1764699126035,22.56769821,139.63,139.61,9.51994492]
[1764699126236,7.26581882,139.62,139.59,8.80994492]
[1764699126400,15.30187939,139.63,139.59,0.71]
[1764699126600,7.26581882,139.62,139.58,8.90994492]
[1764699126902,7.26581882,139.62,139.59,0.71]
[1764699127107,7.26581882,139.61,139.59,0.71]
[1764699127914,7.26581882,139.62,139.59,0.71]
[1764699128601,15.30184889,139.63,139.59,0.71]
[1764699128823,7.26581882,139.62,139.59,0.71]
[1764699129719,15.40581882,139.63,139.59,7.8737558]
[1764699129927,8.14,139.63,139.59,15.13957462]
[1764699130233,8.14,139.63,139.61,8.80994492]
[1764699130436,7.16042483,139.66,139.63,8.80994492]
[1764699130643,36.19806071,139.72,139.64,7.97581882]
[1764699130942,7.26581882,139.68,139.64,7.97581882]
[1764699131104,8.12,139.67,139.65,0.71]
[1764699131631,7.26581882,139.66,139.62,8.80994492]
[1764699131836,7.26581882,139.66,139.63,0.66]
[1764699132419,14.42638558,139.66,139.63,0.66]
[1764699133046,16.718864,139.71,139.64,16.07576374]
[1764699133342,7.26581882,139.69,139.65,7.26581882]
[1764699133517,7.26581882,139.69,139.65,7.92581882]
[1764699133717,7.26581882,139.66,139.63,8.80994492]
[1764699133925,15.38581882,139.66,139.63,8.80994492]
[1764699134113,15.38581882,139.66,139.63,9.46994492]
[1764699134309,8.12,139.66,139.65,8.80994492]
[1764699134711,8.12,139.66,139.65,0.66]
[1764699134928,8.12,139.66,139.65,9.46994492]
[1764699135521,14.42421319,139.7,139.65,16.73576374]
[1764699135722,8.12,139.71,139.67,16.07576374]
[1764699135911,15.38581882,139.71,139.67,8.80994492]
[1764699136243,15.38581882,139.71,139.68,0.66]
[1764699136736,8.12,139.71,139.69,8.80994492]
[1764699137125,8.12,139.71,139.69,9.46994492]
[1764699139240,15.38581882,139.71,139.69,9.46994492]
[1764699139415,8.12,139.71,139.69,9.46994492]
[1764699140940,8.12,139.71,139.7,0.66]
[1764699142717,8.12,139.71,139.68,23.57468282]
[1764699142917,15.38581882,139.71,139.69,8.80994492]
[1764699143126,15.38581882,139.71,139.68,0.66]
[1764699143444,8.12,139.71,139.68,0.66]
[1764699144314,8.12,139.71,139.69,8.80994492]
[1764699144638,8.12,139.71,139.69,15.96860762]
[1764699144812,8.12,139.71,139.69,16.62860762]
[1764699145742,20.49587805,139.71,139.68,8.80994492]
[1764699145917,20.49587805,139.71,139.68,9.46994492]
[1764699146112,8.12,139.71,139.68,8.80994492]
[1764699146332,8.12,139.71,139.69,0.66]
[1764699146533,20.49587805,139.71,139.69,0.66]
[1764699146734,8.12,139.71,139.67,9.46994492]
[1764699146936,8.12,139.71,139.69,8.80994492]
[1764699147420,8.12,139.71,139.69,9.46994492]
[1764699147644,8.12,139.71,139.68,23.4679453]
[1764699147848,20.49587805,139.71,139.68,9.46994492]
[1764699148642,19.53421395,139.7,139.68,8.80994492]
[1764699148942,12.37587805,139.7,139.68,8.80994492]
[1764699149747,12.37587805,139.69,139.61,17.90623672]
[1764699149934,12.37587805,139.67,139.65,8.80994492]